[Event "44th Chess Olympiad Women 2022"]
[Site "Chennai"]
[Date "2022.07.29"]
[Round "1.32"]
[White "Mariroh, Fariha"]
[Black "Mejia, Camila"]
[Result "1-0"]
[WhiteElo "1839"]
[BlackElo "1330"]
[Annotator "NA RC"]
[PlyCount "27"]
[EventDate "2022.??.??"]
[TimeControl "60"]

1. e4 {[%emt 0:00:03]} e5 {[%emt 0:00:11]} 2. Nf3 {[%emt 0:00:06]} Nc6 {
[%emt 0:00:29]} 3. Bc4 {[%emt 0:00:07]} Nf6 {[%emt 0:01:43]} 4. d3 {[%emt 0:00:
00]} Bc5 {[%emt 0:03:36]} 5. O-O {[%emt 0:04:39]} Ng4 {[%emt 0:04:56]} 6. Bxf7+
{[%emt 0:19:54]} Kf8 {[%emt 0:23:03]} 7. Bb3 {[%emt 0:06:55]} h6 {[%emt 0:00:
00]} 8. Nc3 {[%emt 0:10:27]} d6 {[%emt 0:08:14]} 9. h3 {[%emt 0:06:41]} Bxf2+ {
[%emt 0:03:30]} 10. Kh1 {[%emt 0:07:45]} Ne3 {[%emt 0:13:14]} 11. Bxe3 {
[%emt 0:00:18]} Bxe3 {[%emt 0:00:08]} 12. Nxe5+ {[%emt 0:01:35]} Ke8 {[%emt 0:
00:00]} 13. Bf7+ {[%emt 0:01:00]} Kf8 {[%emt 0:00:59]} 14. Ng6# {[%emt 0:00:10]
} 1-0

[Event "44th Chess Olympiad Women 2022"]
[Site "Chennai"]
[Date "2022.07.29"]
[Round "1.32"]
[White "Sukandar, Irine Kharisma"]
[Black "Viana, Valeria"]
[Result "1-0"]
[WhiteElo "2373"]
[BlackElo "1441"]
[Annotator "TA"]
[PlyCount "51"]
[EventDate "2022.??.??"]
[TimeControl "60"]

{[%evp 11,50,51,68,57,100,114,135,129,283,290,557,541,658,596,1914,1919,3642,
3537,2468,2292,2769,2774,2491,2472,2319,2220,29994,29995,29995,29996,29996,
2695,2017,1635,29997,29998,29998,29997,29998,29999,29999]} 1. d4 {[%emt 0:00:
00]} Nf6 {[%emt 0:00:30]} 2. Bf4 {[%emt 0:00:18]} g6 {[%emt 0:00:59]} 3. Nc3 {
[%emt 0:00:18]} Bg7 {[%emt 0:01:51]} 4. e4 {[%emt 0:00:15][%cal Ye2e4,Ye4e5]}
d6 {[%emt 0:00:21]} 5. Qd2 {[%emt 0:00:37]} Nbd7 {[%emt 0:04:02]} 6. Nf3 {
[%emt 0:01:33]} O-O {[%emt 0:03:10]} 7. O-O-O {[%emt 0:01:48] B08: Pirc
Defence: Classical System.} a6 {[%emt 0:05:10]} 8. e5 {[%emt 0:03:49]} Ne8 {
[%emt 0:05:06]} 9. Bh6 {[%emt 0:01:39] [#] White is much more active. White is
clearly better.} c6 $146 {[%emt 0:02:21] [#]} (9... c5 $16) ({Predecessor:} 
9... Nb6 10. h4 Bg4 11. h5 gxh5 12. Bxg7 Nxg7 13. Qh6 Bf5 14. Bd3 Qd7 15. Ne4
Qe6 {1-0 (48) Ostrovskiy,A (2425)-Suvorov,A (2313) Chess.com INT 2020}) 10. h4
$1 $18 {[%emt 0:01:22][%cal Yh2h4,Yh4h5]} Nb6 $2 {[%emt 0:24:33]} (10... f6 {
was called for.} 11. Bd3 Kh8 12. Bxg7+ Kxg7) 11. h5 {[%emt 0:04:21]} Bf5 {
[%emt 0:01:22]} 12. Bxg7 {[%emt 0:03:02]} Kxg7 {[%emt 0:04:27]} 13. hxg6 {
[%emt 0:01:46]} Bxg6 {[%emt 0:00:53]} 14. Qh6+ {[%emt 0:00:13]} Kg8 {[%emt 0:
00:00]} 15. Nh4 {[%emt 0:03:32]} Ng7 {[%emt 0:02:01]} 16. Nxg6 {[%emt 0:00:32]}
fxg6 {[%emt 0:00:25]} 17. e6 {[%emt 0:00:50][%csl Gh1][%cal Rh6h7] [#]} Nh5 {
[%emt 0:01:50]} 18. Rxh5 {[%emt 0:00:19]} gxh5 {[%emt 0:01:55]} 19. Bd3 {
[%emt 0:00:12][%csl Gd3][%cal Rh6h7,Yf1d3,Yd3f5,Yf5e6]} Rf7 {[%emt 0:00:00]}
20. exf7+ {[%emt 0:00:12]} Kxf7 {[%emt 0:00:16]} 21. Qxh5+ {[%emt 0:00:00]} (
21. Qxh7+ $142 Ke8 22. Bf5 Kf8 23. Bg6 e6 24. Qf7#) 21... Kf8 {[%emt 0:00:00]}
22. Qxh7 {[%emt 0:06:12] Threatening mate with Bg6.} Ke8 {[%emt 0:00:00]} 23.
Bf5 {[%emt 0:00:10][%cal Rh7g8] White mates.} Nd7 {[%emt 0:02:04]} 24. Qg6+ {
[%emt 0:00:19]} Kf8 {[%emt 0:03:09]} 25. Be6 {[%emt 0:00:08][%csl Ge6][%cal
Rg6g8]} Ne5 {[%emt 0:12:57]} 26. Qg8# {[%emt 0:01:07] Black got outplayed
after the opening. Weighted Error Value: White=0.04 (flawless) / Black=1.30}
1-0

[Event "44th Chess Olympiad Women 2022"]
[Site "Chennai"]
[Date "2022.07.29"]
[Round "1.33"]
[White "Abera, Mekdes Demssie"]
[Black "Rodriguez Rueda, Paula Andrea"]
[Result "0-1"]
[WhiteElo "1342"]
[BlackElo "2237"]
[Annotator "NA RC"]
[PlyCount "64"]
[EventDate "2022.??.??"]
[TimeControl "60"]

1. c4 {[%emt 0:00:13]} e6 {[%emt 0:00:18]} 2. Nc3 {[%emt 0:00:54]} d5 {[%emt 0:
00:00]} 3. cxd5 {[%emt 0:00:31]} exd5 {[%emt 0:00:04]} 4. d4 {[%emt 0:00:59]}
Nf6 {[%emt 0:01:06]} 5. Nf3 {[%emt 0:00:43]} c6 {[%emt 0:01:28]} 6. e3 {
[%emt 0:00:41]} Bd6 {[%emt 0:00:51]} 7. Be2 {[%emt 0:01:15]} O-O {[%emt 0:00:
00]} 8. O-O {[%emt 0:00:35]} Re8 {[%emt 0:00:28]} 9. Re1 {[%emt 0:00:27]} Nbd7
{[%emt 0:03:46]} 10. Qc2 {[%emt 0:02:29]} Ne4 {[%emt 0:01:13]} 11. Bd3 {
[%emt 0:01:07]} Ndf6 {[%emt 0:00:06]} 12. h3 {[%emt 0:03:13]} Qe7 {[%emt 0:00:
00]} 13. a3 {[%emt 0:01:57]} Bf5 {[%emt 0:08:18]} 14. Nh4 {[%emt 0:02:30]} Bd7
{[%emt 0:01:05]} 15. Nf3 {[%emt 0:01:32]} Rac8 {[%emt 0:02:00]} 16. b4 {
[%emt 0:08:14]} Nxc3 {[%emt 0:01:43]} 17. Qxc3 {[%emt 0:00:24]} Ne4 {[%emt 0:
00:00]} 18. Qb2 {[%emt 0:03:07]} Qf6 {[%emt 0:00:22]} 19. Bxe4 {[%emt 0:03:20]}
dxe4 {[%emt 0:01:06]} 20. Nh2 {[%emt 0:01:46]} Qh6 {[%emt 0:02:16]} 21. f4 {
[%emt 0:03:15]} exf3 {[%emt 0:02:19]} 22. Nxf3 {[%emt 0:00:34]} Qg6 {[%emt 0:
00:00]} 23. Kf1 {[%emt 0:03:20]} Bg3 {[%emt 0:04:52]} 24. Rd1 {[%emt 0:04:13]}
Bf5 {[%emt 0:07:29]} 25. Qe2 {[%emt 0:02:41]} Bc2 {[%emt 0:01:19]} 26. Rd2 {
[%emt 0:00:32]} Ba4 {[%emt 0:00:47]} 27. Ne1 {[%emt 0:04:48]} Bf4 {[%emt 0:00:
00]} 28. Rc2 {[%emt 0:10:30]} Bb5 {[%emt 0:00:56]} 29. Rc4 {[%emt 0:00:15]} Qe6
{[%emt 0:02:09]} 30. Kg1 {[%emt 0:05:02]} Bxc4 {[%emt 0:00:11]} 31. Qf3 {
[%emt 0:00:49]} Bxe3+ {[%emt 0:00:26]} 32. Bxe3 {[%emt 0:00:47]} Qxe3+ {
[%emt 0:00:08]} 0-1

[Event "44th Chess Olympiad Women 2022"]
[Site "Chennai"]
[Date "2022.07.29"]
[Round "1.33"]
[White "Argote Heredia, Valentina"]
[Black "Bantiwalu, Aster Melake"]
[Result "1-0"]
[WhiteElo "2205"]
[BlackElo "1425"]
[Annotator "NA RC"]
[PlyCount "47"]
[EventDate "2022.??.??"]
[TimeControl "60"]

1. e4 {[%emt 4:16:31]} e5 {[%emt 0:00:24]} 2. Nf3 {[%emt 0:00:07]} Nc6 {
[%emt 0:01:00]} 3. Bb5 {[%emt 0:00:36]} d6 {[%emt 0:02:06]} 4. h3 {[%emt 0:00:
00]} Nf6 {[%emt 0:02:16]} 5. d3 {[%emt 0:01:07]} h6 {[%emt 0:00:45]} 6. O-O {
[%emt 0:02:05]} Be7 {[%emt 0:01:26]} 7. c3 {[%emt 0:04:16]} O-O {[%emt 0:01:52]
} 8. Re1 {[%emt 0:01:16]} a6 {[%emt 0:02:05]} 9. Ba4 {[%emt 0:00:22]} b5 {
[%emt 0:00:43]} 10. Bc2 {[%emt 0:01:36]} Nd7 {[%emt 0:02:50]} 11. Nbd2 {
[%emt 0:02:31]} Bf6 {[%emt 0:03:03]} 12. Nf1 {[%emt 0:00:11]} Re8 {[%emt 0:00:
00]} 13. Ne3 {[%emt 0:04:25]} Nb6 {[%emt 0:02:39]} 14. Nh2 {[%emt 0:02:54]} Ne7
{[%emt 0:04:26]} 15. Qh5 {[%emt 0:02:25]} Bg5 {[%emt 0:07:58]} 16. Bb3 {
[%emt 0:07:09]} Be6 {[%emt 0:05:23]} 17. Bxe6 {[%emt 0:00:46]} fxe6 {[%emt 0:
00:00]} 18. h4 {[%emt 0:05:34]} Bf6 {[%emt 0:03:54]} 19. Neg4 {[%emt 0:00:11]}
Rf8 {[%emt 0:05:46]} 20. Bxh6 {[%emt 0:14:05]} gxh6 {[%emt 0:03:21]} 21. Nxh6+
{[%emt 0:00:06]} Kg7 {[%emt 0:01:05]} 22. Re3 {[%emt 0:00:11]} Qe8 {[%emt 0:00:
00]} 23. Rg3+ {[%emt 0:00:12]} Kh7 {[%emt 0:01:48]} 24. Nf7# {[%emt 0:00:42]}
1-0

[Event "44th Chess Olympiad Women 2022"]
[Site "Chennai"]
[Date "2022.07.29"]
[Round "1.33"]
[White "Haile, Lidet Abate"]
[Black "Chirivi C, Jenny Astrid"]
[Result "0-1"]
[WhiteElo "1624"]
[BlackElo "2157"]
[Annotator "RC"]
[PlyCount "220"]
[EventDate "2022.??.??"]
[TimeControl "60"]

1. e4 {[%emt 0:00:05]} c5 {[%emt 0:00:09]} 2. Nf3 {[%emt 0:00:13]} e6 {[%emt 0:
00:00]} 3. c3 {[%emt 0:00:38]} Nf6 {[%emt 0:00:38]} 4. e5 {[%emt 0:01:06]} Nd5
{[%emt 0:00:23]} 5. Bc4 {[%emt 0:00:52]} Nb6 {[%emt 0:01:22]} 6. Bb3 {[%emt 0:
00:00]} Nc6 {[%emt 0:00:53]} 7. O-O {[%emt 0:00:25]} d6 {[%emt 0:02:01]} 8.
exd6 {[%emt 0:01:07]} Bxd6 {[%emt 0:01:06]} 9. d4 {[%emt 0:01:44]} cxd4 {
[%emt 0:01:15]} 10. Nxd4 {[%emt 0:00:48]} O-O {[%emt 0:05:06]} 11. Nxc6 {
[%emt 0:01:12]} bxc6 {[%emt 0:00:15]} 12. Qh5 {[%emt 0:08:14]} Nd5 {[%emt 0:00:
00]} 13. Bc2 {[%emt 0:04:21]} g6 {[%emt 0:07:30]} 14. Qh6 {[%emt 0:03:20]} Qc7
{[%emt 0:02:56]} 15. g3 {[%emt 0:02:49]} e5 {[%emt 0:03:02]} 16. Nd2 {[%emt 0:
00:00]} f5 {[%emt 0:04:44]} 17. Bb3 {[%emt 0:01:38]} Bc5 {[%emt 0:07:18]} 18.
Nf3 {[%emt 0:03:30]} Ba6 {[%emt 0:03:14]} 19. Rd1 {[%emt 0:02:03]} Rad8 {
[%emt 0:03:58]} 20. Bg5 {[%emt 0:04:59]} Rd7 {[%emt 0:03:29]} 21. Re1 {[%emt 0:
00:00]} e4 {[%emt 0:08:32]} 22. Nh4 {[%emt 0:03:28]} Rff7 {[%emt 0:05:24]} 23.
Ng2 {[%emt 0:04:49]} Bf8 {[%emt 0:08:26]} 24. Qh4 {[%emt 0:03:10]} c5 {[%emt 0:
00:00]} 25. Ba4 {[%emt 0:02:39]} Rd6 {[%emt 0:03:55]} 26. Ne3 {[%emt 0:11:34]}
Qc8 {[%emt 0:03:42]} 27. Rad1 {[%emt 0:02:33]} Bd3 {[%emt 0:01:24]} 28. Bf4 {
[%emt 0:09:44]} Nxe3 {[%emt 0:01:03]} 29. Bxe3 {[%emt 0:00:41]} Ra6 {[%emt 0:
00:00]} 30. b3 {[%emt 0:01:45]} Bg7 {[%emt 0:01:40]} 31. Rc1 {[%emt 0:01:17]}
Rd6 {[%emt 0:03:37]} 32. Qf4 {[%emt 0:02:12]} Rd8 {[%emt 0:00:24]} 33. h4 {
[%emt 0:00:19]} h6 {[%emt 0:00:32]} 34. Bd2 {[%emt 0:02:29]} Qc7 {[%emt 0:00:
00]} 35. Qxc7 {[%emt 0:02:05]} Rxc7 {[%emt 0:00:03]} 36. b4 {[%emt 0:02:22]}
Bc4 {[%emt 0:01:14]} 37. Be3 {[%emt 0:00:41]} Bf8 {[%emt 0:01:26]} 38. a3 {
[%emt 0:00:48]} Kh7 {[%emt 0:00:46]} 39. Red1 {[%emt 0:03:10]} Rd3 {[%emt 0:00:
00]} 40. Rxd3 {[%emt 0:02:08]} Bxd3 {[%emt 0:00:25]} 41. Bc2 {[%emt 0:32:51]}
cxb4 {[%emt 0:30:57]} 42. Bxd3 {[%emt 0:00:37]} exd3 {[%emt 0:00:00]} 43. axb4
{[%emt 0:00:00]} Bg7 {[%emt 0:00:00]} 44. Bd2 {[%emt 0:00:00]} Kg8 {[%emt 0:00:
00]} 45. Kf1 {[%emt 0:00:00]} Kf7 {[%emt 0:00:00]} 46. Ke1 {[%emt 0:00:00]} Rc4
{[%emt 0:00:00]} 47. Kd1 {[%emt 0:00:00]} Ke6 {[%emt 0:00:00]} 48. Be1 {
[%emt 0:00:00]} Kd5 {[%emt 0:00:00]} 49. Kd2 {[%emt 0:00:00]} Ke4 {[%emt 0:00:
00]} 50. f3+ {[%emt 0:00:00]} Kxf3 {[%emt 0:00:00]} 51. Kxd3 {[%emt 0:00:00]}
Rc7 {[%emt 0:01:27]} 52. c4 {[%emt 0:00:00]} Rd7+ {[%emt 0:00:10]} 53. Kc2 {
[%emt 0:00:00]} Be5 {[%emt 0:00:24]} 54. Kb3 {[%emt 0:00:00]} g5 {[%emt 0:00:
00]} 55. hxg5 {[%emt 0:00:00]} hxg5 {[%emt 0:00:03]} 56. c5 {[%emt 0:00:00]} f4
{[%emt 0:00:39]} 57. gxf4 {[%emt 0:00:00]} gxf4 {[%emt 0:00:31]} 58. c6 {
[%emt 0:00:00]} Rh7 {[%emt 0:03:04]} 59. Bc3 {[%emt 0:00:00]} Bc7 {[%emt 0:00:
00]} 60. Bd4 {[%emt 0:00:00]} a6 {[%emt 0:00:08]} 61. Ra1 {[%emt 0:00:00]} Ke4
{[%emt 0:00:16]} 62. Bc5 {[%emt 0:00:00]} f3 {[%emt 0:01:06]} 63. Rxa6 {
[%emt 0:00:00]} Kd5 {[%emt 0:00:40]} 64. Kc3 {[%emt 0:00:00]} Bg3 {[%emt 0:00:
00]} 65. Ra8 {[%emt 0:03:22]} Rf7 {[%emt 0:01:06]} 66. Ra2 {[%emt 0:01:37]} f2
{[%emt 0:00:52]} 67. Bxf2 {[%emt 0:00:24]} Rf3+ {[%emt 0:00:37]} 68. Be3 {
[%emt 0:01:20]} Rxe3+ {[%emt 0:00:15]} 69. Kd2 {[%emt 0:01:01]} Bf4 {[%emt 0:
00:00]} 70. Ra5+ {[%emt 0:02:17]} Kxc6 {[%emt 0:00:40]} 71. Rf5 {[%emt 0:01:14]
} Re4+ {[%emt 0:00:12]} 72. Kc3 {[%emt 0:00:56]} Bc7 {[%emt 0:00:45]} 73. b5+ {
[%emt 0:00:25]} Kb6 {[%emt 0:00:11]} 74. Kd3 {[%emt 0:00:12]} Rg4 {[%emt 0:00:
00]} 75. Kc3 {[%emt 0:00:25]} Bh2 {[%emt 0:00:16]} 76. Kd3 {[%emt 0:00:15]} Bg1
{[%emt 0:00:10]} 77. Ke2 {[%emt 0:00:40]} Bc5 {[%emt 0:00:36]} 78. Kf3 {
[%emt 0:00:16]} Ra4 {[%emt 0:00:20]} 79. Rf6+ {[%emt 0:00:32]} Kxb5 {[%emt 0:
00:00]} 80. Rf5 {[%emt 0:00:48]} Kc4 {[%emt 0:00:28]} 81. Ke4 {[%emt 0:00:51]}
Ra6 {[%emt 0:01:34]} 82. Rf4 {[%emt 0:01:16]} Bd4 {[%emt 0:00:19]} 83. Rf7 {
[%emt 0:01:21]} Re6+ {[%emt 0:00:06]} 84. Kf5 {[%emt 0:00:08]} Re5+ {[%emt 0:
00:00]} 85. Kf4 {[%emt 0:00:07]} Kd3 {[%emt 0:00:27]} 86. Rb7 {[%emt 0:00:18]}
Re6 {[%emt 0:00:45]} 87. Rb3+ {[%emt 0:00:32]} Bc3 {[%emt 0:00:34]} 88. Kf5 {
[%emt 0:00:32]} Rf6+ {[%emt 0:00:20]} 89. Kg5 {[%emt 0:00:07]} Rf8 {[%emt 0:00:
00]} 90. Kg4 {[%emt 0:01:31]} Kc4 {[%emt 0:00:31]} 91. Rb7 {[%emt 0:01:44]} Bd4
{[%emt 0:00:23]} 92. Re7 {[%emt 0:00:33]} Kd5 {[%emt 0:00:11]} 93. Re2 {
[%emt 0:00:08]} Rf1 {[%emt 0:01:27]} 94. Kg3 {[%emt 0:00:19]} Be5+ {[%emt 0:00:
00]} 95. Kg4 {[%emt 0:00:10]} Ke6 {[%emt 0:00:24]} 96. Ra2 {[%emt 0:00:36]}
Rf4+ {[%emt 0:00:18]} 97. Kh3 {[%emt 0:00:57]} Kf5 {[%emt 0:00:24]} 98. Ra8 {
[%emt 0:00:15]} Ke4 {[%emt 0:00:54]} 99. Ra4+ {[%emt 0:00:18]} Bd4 {[%emt 0:00:
00]} 100. Kg2 {[%emt 0:00:49]} Rg4+ {[%emt 0:00:39]} 101. Kh3 {[%emt 0:01:47]}
Rg7 {[%emt 0:00:38]} 102. Kh4 {[%emt 0:01:00]} Rg8 {[%emt 0:00:08]} 103. Ra5 {
[%emt 0:01:22]} Kf4 {[%emt 0:00:25]} 104. Kh3 {[%emt 0:00:36]} Bc3 {[%emt 0:00:
00]} 105. Ra3 {[%emt 0:00:25]} Rg3+ {[%emt 0:00:30]} 106. Kh2 {[%emt 0:00:02]}
Rd3 {[%emt 0:00:20]} 107. Kg2 {[%emt 0:00:10]} Rd2+ {[%emt 0:00:17]} 108. Kh3 {
[%emt 0:00:10]} Be5 {[%emt 0:00:07]} 109. Ra4+ {[%emt 0:00:06]} Kf5 {[%emt 0:
00:00]} 110. Rb4 {[%emt 0:00:58]} Rh2# {[%emt 0:00:59]} 0-1

[Event "44th Chess Olympiad Women 2022"]
[Site "Chennai"]
[Date "2022.07.29"]
[Round "1.33"]
[White "Pachon, Adriana"]
[Black "Ayele, Hana Mulugeta"]
[Result "1-0"]
[WhiteElo "2007"]
[BlackElo "1437"]
[Annotator "NA RC"]
[PlyCount "95"]
[EventDate "2022.??.??"]
[TimeControl "60"]

1. e4 {[%emt 0:00:12]} e5 {[%emt 0:00:08]} 2. Nf3 {[%emt 0:00:05]} Nc6 {
[%emt 0:00:12]} 3. Bc4 {[%emt 0:00:12]} Bc5 {[%emt 0:00:13]} 4. c3 {[%emt 0:00:
00]} d6 {[%emt 0:00:20]} 5. d3 {[%emt 0:00:18]} h6 {[%emt 0:00:18]} 6. O-O {
[%emt 0:00:54]} Nf6 {[%emt 0:00:12]} 7. Be3 {[%emt 0:01:39]} Bb6 {[%emt 0:00:
00]} 8. Bb3 {[%emt 0:02:20]} O-O {[%emt 0:00:21]} 9. Nbd2 {[%emt 0:00:30]} Be6
{[%emt 0:00:46]} 10. Bxe6 {[%emt 0:02:57]} fxe6 {[%emt 0:00:17]} 11. Nc4 {
[%emt 0:02:27]} Bxe3 {[%emt 0:01:55]} 12. fxe3 {[%emt 0:00:26]} b5 {[%emt 0:00:
00]} 13. Ncd2 {[%emt 0:01:25]} Nh7 {[%emt 0:01:52]} 14. Qb3 {[%emt 0:00:43]}
Rf6 {[%emt 0:04:18]} 15. Qxb5 {[%emt 0:02:38]} Qd7 {[%emt 0:05:19]} 16. Nc4 {
[%emt 0:01:52]} Rf7 {[%emt 0:02:39]} 17. Nfd2 {[%emt 0:04:08]} Raf8 {[%emt 0:
00:00]} 18. Rxf7 {[%emt 0:00:30]} Rxf7 {[%emt 0:00:17]} 19. Rf1 {[%emt 0:00:20]
} Re7 {[%emt 0:02:19]} 20. Na5 {[%emt 0:02:38]} Nxa5 {[%emt 0:00:44]} 21. Qxa5
{[%emt 0:00:04]} c6 {[%emt 0:01:05]} 22. Nc4 {[%emt 0:00:07]} Nf6 {[%emt 0:00:
00]} 23. Qb4 {[%emt 0:00:56]} c5 {[%emt 0:04:41]} 24. Qb8+ {[%emt 0:02:08]} Ne8
{[%emt 0:02:59]} 25. b4 {[%emt 0:00:54]} cxb4 {[%emt 0:02:51]} 26. cxb4 {
[%emt 0:01:20]} Kh7 {[%emt 0:01:22]} 27. b5 {[%emt 0:01:52]} Nc7 {[%emt 0:00:
00]} 28. a4 {[%emt 0:00:37]} Ne8 {[%emt 0:02:06]} 29. Rf8 {[%emt 0:00:51]} Kg6
{[%emt 0:07:22]} 30. h3 {[%emt 0:01:58]} Kh7 {[%emt 0:02:44]} 31. Na5 {[%emt 0:
00:00]} Qc7 {[%emt 0:04:35]} 32. Qxc7 {[%emt 0:00:11]} Nxc7 {[%emt 0:00:15]}
33. Nc6 {[%emt 0:00:03]} Rd7 {[%emt 0:04:29]} 34. Nxa7 {[%emt 0:00:11]} d5 {
[%emt 0:01:52]} 35. exd5 {[%emt 0:00:32]} exd5 {[%emt 0:00:37]} 36. Nc6 {
[%emt 0:00:06]} e4 {[%emt 0:00:50]} 37. dxe4 {[%emt 0:00:37]} dxe4 {[%emt 0:00:
00]} 38. Rd8 {[%emt 0:00:05]} Rf7 {[%emt 0:04:05]} 39. Rd4 {[%emt 0:00:22]} Rf5
{[%emt 0:04:04]} 40. b6 {[%emt 0:00:43]} Na6 {[%emt 0:01:27]} 41. b7 {[%emt 0:
00:00]} Rc5 {[%emt 0:30:49]} 42. Nb4 {[%emt 0:00:39]} Nb8 {[%emt 0:00:35]} 43.
Rd8 {[%emt 0:00:37]} Rc4 {[%emt 0:00:35]} 44. Rxb8 {[%emt 0:00:06]} Rxb4 {
[%emt 0:00:24]} 45. a5 {[%emt 0:00:04]} Rb1+ {[%emt 0:01:03]} 46. Kh2 {[%emt 0:
00:00]} Rb3 {[%emt 0:00:25]} 47. a6 {[%emt 0:00:06]} Rxe3 {[%emt 0:00:17]} 48.
a7 {[%emt 0:00:13]} 1-0

[Event "44th Chess Olympiad Women 2022"]
[Site "Chennai"]
[Date "2022.07.29"]
[Round "1.34"]
[White "Cramling Bellon, Anna"]
[Black "Terubea, Cydel"]
[Result "1-0"]
[WhiteElo "2065"]
[BlackElo "1450"]
[Annotator "NA"]
[PlyCount "83"]
[EventDate "2022.??.??"]
[TimeControl "60"]

1. d4 {[%emt 0:00:06]} d5 {[%emt 0:00:21]} 2. c4 {[%emt 0:00:15]} e6 {[%emt 0:
00:00]} 3. Nc3 {[%emt 0:00:30]} Nf6 {[%emt 0:00:32]} 4. cxd5 {[%emt 0:00:40]}
exd5 {[%emt 0:00:49]} 5. Bg5 {[%emt 0:01:00]} Be7 {[%emt 0:00:53]} 6. e3 {
[%emt 0:00:27]} O-O {[%emt 0:00:56]} 7. Bd3 {[%emt 0:00:56]} h6 {[%emt 0:00:38]
} 8. Bf4 {[%emt 0:05:34]} a6 {[%emt 0:01:45]} 9. h3 {[%emt 0:00:29]} c5 {
[%emt 0:01:30]} 10. dxc5 {[%emt 0:02:41]} Bxc5 {[%emt 0:00:27]} 11. Nf3 {
[%emt 0:01:05]} Nc6 {[%emt 0:00:47]} 12. O-O {[%emt 0:01:57]} Re8 {[%emt 0:00:
00]} 13. Rc1 {[%emt 0:01:48]} Ba7 {[%emt 0:03:33]} 14. Ne2 {[%emt 0:09:31]} Nb4
{[%emt 0:04:03]} 15. Bb1 {[%emt 0:01:33]} Nc6 {[%emt 0:05:41]} 16. Ned4 {
[%emt 0:01:55]} Bd7 {[%emt 0:07:36]} 17. a3 {[%emt 0:09:08]} Nh5 {[%emt 0:00:
00]} 18. Bh2 {[%emt 0:06:13]} Bb8 {[%emt 0:03:43]} 19. Bxb8 {[%emt 0:05:00]}
Rxb8 {[%emt 0:01:24]} 20. Nxc6 {[%emt 0:02:22]} bxc6 {[%emt 0:01:25]} 21. b4 {
[%emt 0:03:33]} a5 {[%emt 0:03:57]} 22. Nd4 {[%emt 0:11:47]} Nf6 {[%emt 0:00:
00]} 23. bxa5 {[%emt 0:09:45]} Qxa5 {[%emt 0:05:08]} 24. Bf5 {[%emt 0:01:04]}
c5 {[%emt 0:02:20]} 25. Bxd7 {[%emt 0:00:18]} cxd4 {[%emt 0:04:39]} 26. Bxe8 {
[%emt 0:00:25]} Rxe8 {[%emt 0:00:43]} 27. Qxd4 {[%emt 0:00:41]} Qxa3 {[%emt 0:
00:00]} 28. Rc3 {[%emt 0:02:16]} Qa2 {[%emt 0:01:52]} 29. Rfc1 {[%emt 0:05:37]}
Ne4 {[%emt 0:03:46]} 30. R3c2 {[%emt 0:00:23]} Qa5 {[%emt 0:06:13]} 31. f3 {
[%emt 0:05:02]} Ng3 {[%emt 0:01:41]} 32. Qg4 {[%emt 0:01:03]} Rxe3 {[%emt 0:00:
00]} 33. Qxg3 {[%emt 0:00:21]} Qb6 {[%emt 0:01:13]} 34. Qf2 {[%emt 0:00:45]} d4
{[%emt 0:01:06]} 35. Rd2 {[%emt 0:01:17]} Qa6 {[%emt 0:05:06]} 36. Rxd4 {
[%emt 0:01:49]} Re2 {[%emt 0:00:43]} 37. Qf1 {[%emt 0:04:30]} Qa2 {[%emt 0:00:
00]} 38. Re4 {[%emt 0:01:00]} Qa7+ {[%emt 0:00:41]} 39. Kh1 {[%emt 0:00:14]}
Rf2 {[%emt 0:00:18]} 40. Re8+ {[%emt 0:00:38]} Kh7 {[%emt 0:00:35]} 41. Qd3+ {
[%emt 0:30:07]} g6 {[%emt 0:32:03]} 42. Qc3 {[%emt 0:01:33]} 1-0

[Event "44th Chess Olympiad Women 2022"]
[Site "Chennai"]
[Date "2022.07.29"]
[Round "1.34"]
[White "Cramling, Pia"]
[Black "Lyons, Kieran"]
[Result "1-0"]
[WhiteElo "2459"]
[BlackElo "1767"]
[Annotator "ChessBase"]
[PlyCount "51"]
[EventDate "2022.??.??"]
[TimeControl "60"]

1. d4 {[%emt 0:00:11]} f5 {[%emt 0:00:04]} 2. g3 {[%emt 0:00:23]} e6 {[%emt 0:
00:00]} 3. Bg2 {[%emt 0:00:33]} Nf6 {[%emt 0:00:19]} 4. c4 {[%emt 0:00:33]} c6
{[%emt 0:00:32]} 5. Qc2 {[%emt 0:01:02]} d6 {[%emt 0:01:29]} 6. Bf4 {[%emt 0:
00:00]} Be7 {[%emt 0:05:08]} 7. Nc3 {[%emt 0:04:52]} O-O {[%emt 0:04:46]} 8.
Nf3 {[%emt 0:09:30]} h6 {[%emt 0:07:57]} 9. e4 {[%emt 0:10:36]} g5 {[%emt 0:00:
00]} 10. Bd2 {[%emt 0:02:40]} Kg7 {[%emt 0:15:58]} 11. O-O-O {[%emt 0:04:24]}
Nbd7 {[%emt 0:22:06]} 12. exf5 {[%emt 0:17:46]} exf5 {[%emt 0:02:18]} 13. Rhe1
{[%emt 0:03:44]} Nb6 {[%emt 0:05:27]} 14. b3 {[%emt 0:03:06]} a5 {[%emt 0:00:
00]} 15. a4 {[%emt 0:00:14]} Qc7 {[%emt 0:04:42]} 16. Kb2 {[%emt 0:02:53]} Rf7
{[%emt 0:00:40]} 17. h4 {[%emt 0:01:59]} g4 {[%emt 0:01:14]} 18. Ng1 {[%emt 0:
00:00]} d5 {[%emt 0:02:14]} 19. cxd5 {[%emt 0:08:10]} cxd5 {[%emt 0:00:26]} 20.
Qc1 {[%emt 0:02:53]} Ng8 {[%emt 0:00:10]} 21. Nxd5 {[%emt 0:04:14]} Qd6 {
[%emt 0:02:15]} 22. Nxe7 {[%emt 0:00:52]} Rxe7 {[%emt 0:00:15]} 23. Qc5 {
[%emt 0:00:45]} Qxc5 {[%emt 0:00:46]} 24. dxc5 {[%emt 0:00:06]} Rxe1 {[%emt 0:
00:00]} 25. Bxe1 {[%emt 0:00:51]} Nd7 {[%emt 0:00:42]} 26. Bxb7 {[%emt 0:01:08]
} 1-0